[Event "Charlotte Open 2024"]
[Site "Charlotte"]
[Date "2024.01.13"]
[Round "1.11"]
[White "Wu, William"]
[Black "Ippolito, Dean"]
[Result "0-1"]
[ECO "C42"]
[WhiteElo "1965"]
[BlackElo "2379"]
[Annotator "ChessBase"]
[PlyCount "94"]
[EventDate "2024.01.05"]
[EventType "swiss"]
[EventCountry "USA"]
[SourceTitle "playchess.com"]
[Source "ChessBase"]
[SourceQuality "1"]
[TimeControl "6600+10"]

1. e4 {[%emt 0:00:15]} e5 {[%emt 0:00:07]} 2. Nf3 {[%emt 0:00:28]} Nf6 {[%emt 0:00:05]} 3. Nxe5 {[%emt 0:00:39]} d6 {[%emt 0:00:05]} 4. Nf3 {[%emt 0:00:27]} Nxe4 {[%emt 0:00:04]} 5. Qe2 {[%emt 0:01:55]} Qe7 {[%emt 0:00:08]} 6. d3 {[%emt 0:00:37]} Nf6 {[%emt 0:00:06]} 7. Nc3 {[%emt 0:01:16]} c6 {[%emt 0:02:34]} 8. Bg5 {[%emt 0:01:50]} Qxe2+ {[%emt 0:00:06]} 9. Bxe2 {[%emt 0:00:48]} Be7 {[%emt 0:00:06]} 10. O-O {[%emt 0:04:08]} h6 {[%emt 0:02:35]} 11. Bd2 {[%emt 0:02:40]} Na6 {[%emt 0:03:33]} 12. d4 {[%emt 0:05:22]} Nc7 {[%emt 0:00:32]} 13. Bd3 {[%emt 0:05:30]} Be6 {[%emt 0:04:37]} 14. a4 {[%emt 0:08:19]} a5 {[%emt 0:14:48]} 15. Nh4 {[%emt 0:20:46]} g6 {[%emt 0:13:07]} 16. f4 {[%emt 0:08:42]} Nfd5 {[%emt 0:01:22]} 17. f5 {[%emt 0:10:11]} Bxh4 {[%emt 0:02:07]} 18. fxe6 {[%emt 0:00:09]} Nxe6 {[%emt 0:13:52]} 19. Nxd5 {[%emt 0:02:52]} cxd5 {[%emt 0:00:04]} 20. Ra3 {[%emt 0:08:10]} Bg5 {[%emt 0:06:40]} 21. Bxg5 {[%emt 0:01:03]} hxg5 {[%emt 0:00:04]} 22. c3 {[%emt 0:12:29]} Ke7 {[%emt 0:47:08]} 23. Rb3 {[%emt 0:00:36]} Rab8 {[%emt 0:00:00]} 24. g3 {[%emt 0:01:28]} b6 {[%emt 0:00:00]} 25. Be2 {[%emt 0:01:18]} f5 {[%emt 0:00:00]} 26. Bf3 {[%emt 0:01:35]} Nc7 {[%emt 0:00:00]} 27. Rc1 {[%emt 0:02:13]} g4 {[%emt 0:00:00]} 28. Bg2 {[%emt 0:00:19]} Rhc8 {[%emt 0:01:00]} 29. c4 {[%emt 0:00:41]} dxc4 {[%emt 0:00:00]} 30. Re3+ {[%emt 0:02:28]} Kd7 {[%emt 0:00:00]} 31. Rxc4 {[%emt 0:01:03]} Ne6 {[%emt 0:00:00]} 32. Bd5 {[%emt 0:02:35]} Ng5 {[%emt 0:00:00]} 33. b3 {[%emt 0:00:26]} Rxc4 {[%emt 0:00:00]} 34. bxc4 {[%emt 0:00:05]} Nf3+ {[%emt 0:01:00]} 35. Bxf3 {[%emt 0:00:10]} gxf3 {[%emt 0:00:00]} 36. Rxf3 {[%emt 0:00:05]} Rc8 {[%emt 0:00:00]} 37. Rc3 {[%emt 0:01:34]} d5 {[%emt 0:00:00]} 38. c5 {[%emt 0:00:08]} bxc5 {[%emt 0:00:00]} 39. dxc5 {[%emt 0:00:03]} Kc6 {[%emt 0:00:50]} 40. Kf2 {[%emt 0:00:40]} d4 {[%emt 0:00:00]} 41. Rc1 {[%emt 0:00:17]} Kd5 {[%emt 0:00:00]} 42. Kf3 {[%emt 0:00:18]} Rxc5 {[%emt 0:00:00]} 43. Rd1 {[%emt 0:00:02]} g5 {[%emt 0:00:00]} 44. h4 {[%emt 0:00:03]} Rc3+ {[%emt 0:00:00]} 45. Kf2 {[%emt 0:00:03]} gxh4 {[%emt 0:00:00]} 46. gxh4 {[%emt 0:00:02]} Rh3 {[%emt 0:01:10]} 47. Rb1 {[%emt 0:00:02]} Rxh4 {[%emt 0:00:00]} 0-1

[Event "Charlotte Open 2024"]
[Site "Charlotte"]
[Date "2024.01.13"]
[Round "1.12"]
[White "Kraai, Jesse"]
[Black "Wofford, Matthew"]
[Result "1-0"]
[ECO "D02"]
[WhiteElo "2375"]
[BlackElo "1993"]
[Annotator "RC"]
[PlyCount "104"]
[EventDate "2024.01.05"]
[EventType "swiss"]
[EventCountry "USA"]
[SourceTitle "playchess.com"]
[Source "ChessBase"]
[SourceQuality "1"]
[TimeControl "6600+10"]

1. d4 {[%emt 0:00:09]} Nf6 {[%emt 0:00:11]} 2. Nf3 {[%emt 0:00:09]} e6 {[%emt 0:00:15]} 3. Bf4 {[%emt 0:00:17]} d5 {[%emt 0:00:09]} 4. e3 {[%emt 0:00:10]} Bd6 {[%emt 0:00:10]} 5. Bxd6 {[%emt 0:00:39]} Qxd6 {[%emt 0:00:30]} 6. c4 {[%emt 0:00:06]} O-O {[%emt 0:01:33]} 7. Nc3 {[%emt 0:00:05]} dxc4 {[%emt 0:00:53]} 8. Bxc4 {[%emt 0:00:11]} c5 {[%emt 0:01:40]} 9. O-O {[%emt 0:04:34]} Nc6 {[%emt 0:02:07]} 10. Rc1 {[%emt 0:03:47]} Rd8 {[%emt 0:09:04]} 11. dxc5 {[%emt 0:01:18]} Qxc5 {[%emt 0:01:28]} 12. Qe2 {[%emt 0:00:09]} Bd7 {[%emt 0:07:11]} 13. Bb3 {[%emt 0:13:27]} Qe7 {[%emt 0:05:22]} 14. e4 {[%emt 0:02:17]} e5 {[%emt 0:26:53]} 15. Nd5 {[%emt 0:00:15]} Qd6 {[%emt 0:01:12]} 16. h3 {[%emt 0:06:53]} Na5 {[%emt 0:12:02]} 17. Rfd1 {[%emt 0:03:25]} Nxb3 {[%emt 0:01:01]} 18. axb3 {[%emt 0:00:08]} Rab8 {[%emt 0:18:59]} 19. Nxf6+ {[%emt 0:16:24]} Qxf6 {[%emt 0:00:10]} 20. Rd5 {[%emt 0:00:08]} Bc6 {[%emt 0:01:56]} 21. Rxe5 {[%emt 0:00:46]} h6 {[%emt 0:01:42]} 22. Rf5 {[%emt 0:06:59]} Qe6 {[%emt 0:01:54]} 23. Ne5 {[%emt 0:00:10]} Re8 {[%emt 0:03:58]} 24. Qe3 {[%emt 0:07:47]} Bxe4 {[%emt 0:05:44]} 25. Qxe4 {[%emt 0:00:21]} g6 {[%emt 0:00:17]} 26. Rf3 {[%emt 0:07:45]} Qxe5 {[%emt 0:00:58]} 27. Qxe5 {[%emt 0:02:28]} Rxe5 {[%emt 0:00:04]} 28. Rc7 {[%emt 0:00:04]} Rf8 {[%emt 0:00:55]} 29. Rxb7 {[%emt 0:00:22]} Re1+ {[%emt 0:01:02]} 30. Kh2 {[%emt 0:00:16]} Rb1 {[%emt 0:00:10]} 31. Rxa7 {[%emt 0:01:37]} Rxb2 {[%emt 0:00:05]} 32. Rb7 {[%emt 0:08:20]} Kg7 {[%emt 0:01:00]} 33. g4 {[%emt 0:01:35]} g5 {[%emt 0:01:42]} 34. h4 {[%emt 0:05:35]} Kg6 {[%emt 0:02:01]} 35. h5+ {[%emt 0:00:41]} Kg7 {[%emt 0:00:04]} 36. Kg2 {[%emt 0:00:30]} Kg8 {[%emt 0:00:29]} 37. Rf5 {[%emt 0:01:13]} Rb1 {[%emt 0:00:33]} 38. Kf3 {[%emt 0:00:06]} Rb2 {[%emt 0:00:28]} 39. b4 {[%emt 0:01:47]} Rb3+ {[%emt 0:00:19]} 40. Ke4 {[%emt 0:00:22]} Re8+ {[%emt 0:00:15]} 41. Kd4 {[%emt 0:00:25]} Rb2 {[%emt 0:00:13]} 42. Kc3 {[%emt 0:00:52]} Ree2 {[%emt 0:00:11]} 43. Rbxf7 {[%emt 0:01:27]} Rbc2+ {[%emt 0:00:15]} 44. Kb3 {[%emt 0:00:18]} Rb2+ {[%emt 0:00:03]} 45. Ka4 {[%emt 0:02:15]} Re8 {[%emt 0:00:02]} 46. R7f6 {[%emt 0:00:47]} Ra8+ {[%emt 0:00:20]} 47. Ra5 {[%emt 0:00:12]} Rb8 {[%emt 0:00:19]} 48. b5 {[%emt 0:03:39]} Ra2+ {[%emt 0:00:05]} 49. Kb4 {[%emt 0:00:09]} Rb2+ {[%emt 0:00:03]} 50. Kc3 {[%emt 0:00:28]} R2xb5 {[%emt 0:00:17]} 51. Rxb5 {[%emt 0:00:20]} Rxb5 {[%emt 0:00:03]} 52. Rxh6 {[%emt 0:00:04]} Kf7 {[%emt 0:00:33]} 1-0

[Event "Charlotte Open 2024"]
[Site "Charlotte"]
[Date "2024.01.13"]
[Round "1.13"]
[White "Decord, Aaron"]
[Black "Zapata, Alonso"]
[Result "0-1"]
[ECO "A63"]
[WhiteElo "2078"]
[BlackElo "2313"]
[Annotator "RC"]
[PlyCount "64"]
[EventDate "2024.01.05"]
[EventType "swiss"]
[EventCountry "USA"]
[SourceTitle "playchess.com"]
[Source "ChessBase"]
[SourceQuality "1"]
[TimeControl "6600+10"]

1. d4 {[%emt 0:00:02]} Nf6 {[%emt 0:02:09]} 2. c4 {[%emt 0:00:09]} c5 {[%emt 0:00:14]} 3. d5 {[%emt 0:00:05]} d6 {[%emt 0:00:13]} 4. Nc3 {[%emt 0:00:12]} g6 {[%emt 0:00:10]} 5. Nf3 {[%emt 0:00:16]} Bg7 {[%emt 0:00:09]} 6. g3 {[%emt 0:00:42]} O-O {[%emt 0:00:13]} 7. Bg2 {[%emt 0:00:03]} e6 {[%emt 0:01:25]} 8. O-O {[%emt 0:00:34]} Re8 {[%emt 0:00:49]} 9. Re1 {[%emt 0:01:33]} exd5 {[%emt 0:05:22]} 10. cxd5 {[%emt 0:00:08]} a6 {[%emt 0:00:48]} 11. a4 {[%emt 0:00:15]} Nbd7 {[%emt 0:00:37]} 12. e4 {[%emt 0:04:29]} Ng4 {[%emt 0:03:22]} 13. Nd2 {[%emt 0:08:20]} Nge5 {[%emt 0:03:21]} 14. Bf1 {[%emt 0:00:49]} f5 {[%emt 0:06:39]} 15. exf5 {[%emt 0:11:09]} gxf5 {[%emt 0:00:39]} 16. f4 {[%emt 0:00:34]} Nf7 {[%emt 0:03:48]} 17. Nf3 {[%emt 0:01:00]} Nf6 {[%emt 0:04:17]} 18. Bd3 {[%emt 0:05:28]} Bd7 {[%emt 0:03:59]} 19. Rxe8+ {[%emt 0:07:03]} Qxe8 {[%emt 0:02:21]} 20. Qc2 {[%emt 0:01:09]} Qc8 {[%emt 0:04:08]} 21. Qe2 {[%emt 0:14:52]} Qc7 {[%emt 0:01:23]} 22. Ng5 {[%emt 0:05:05]} Nxg5 {[%emt 0:02:25]} 23. fxg5 {[%emt 0:00:04]} Ng4 {[%emt 0:01:45]} 24. Bf4 {[%emt 0:05:36]} Re8 {[%emt 0:00:48]} 25. Qc2 {[%emt 0:00:44]} c4 {[%emt 0:00:45]} 26. Bxf5 {[%emt 0:03:07]} Bxf5 {[%emt 0:04:15]} 27. Qxf5 {[%emt 0:00:04]} Qb6+ {[%emt 0:00:24]} 28. Kh1 {[%emt 0:04:01]} Qxb2 {[%emt 0:01:50]} 29. Qxg4 {[%emt 0:01:18]} Qxa1+ {[%emt 0:00:51]} 30. Nd1 {[%emt 0:00:05]} Re1+ {[%emt 0:01:33]} 31. Kg2 {[%emt 0:00:05]} Qxd1 {[%emt 0:00:06]} 32. Qc8+ {[%emt 0:00:31]} Bf8 {[%emt 0:00:13]} 0-1

[Event "Charlotte Open 2024"]
[Site "Charlotte"]
[Date "2024.01.13"]
[Round "1.14"]
[White "Horobetz, Graham"]
[Black "Bynum, Jacorey"]
[Result "1-0"]
[ECO "B39"]
[WhiteElo "2249"]
[BlackElo "1664"]
[Annotator "RC"]
[PlyCount "214"]
[EventDate "2024.01.05"]
[EventType "swiss"]
[EventCountry "USA"]
[SourceTitle "playchess.com"]
[Source "ChessBase"]
[SourceQuality "1"]
[TimeControl "6600+10"]

1. e4 {[%emt 0:00:04]} c5 {[%emt 0:00:07]} 2. Nf3 {[%emt 0:00:10]} Nc6 {[%emt 0:00:07]} 3. d4 {[%emt 0:00:07]} cxd4 {[%emt 0:00:07]} 4. Nxd4 {[%emt 0:00:06]} g6 {[%emt 0:00:18]} 5. c4 {[%emt 0:00:10]} Bg7 {[%emt 0:00:13]} 6. Be3 {[%emt 0:00:20]} Nf6 {[%emt 0:00:25]} 7. Nc3 {[%emt 0:00:07]} Ng4 {[%emt 0:01:46]} 8. Qxg4 {[%emt 0:00:07]} Nxd4 {[%emt 0:00:15]} 9. Qd1 {[%emt 0:00:05]} Nc6 {[%emt 0:00:36]} 10. Qd2 {[%emt 0:02:34]} Qa5 {[%emt 0:03:06]} 11. Rc1 {[%emt 0:04:52]} d6 {[%emt 0:02:19]} 12. Be2 {[%emt 0:04:26]} Be6 {[%emt 0:01:32]} 13. O-O {[%emt 0:03:45]} O-O {[%emt 0:00:26]} 14. f4 {[%emt 0:03:48]} Rac8 {[%emt 0:05:30]} 15. f5 {[%emt 0:05:28]} gxf5 {[%emt 0:01:46]} 16. exf5 {[%emt 0:00:19]} Bxf5 {[%emt 0:01:04]} 17. b4 {[%emt 0:24:15]} Qe5 {[%emt 0:01:17]} 18. b5 {[%emt 0:08:28]} Nd4 {[%emt 0:10:44]} 19. Bd3 {[%emt 0:07:50]} e6 {[%emt 0:07:14]} 20. Rf4 {[%emt 0:06:34]} Bxd3 {[%emt 0:10:03]} 21. Bxd4 {[%emt 0:01:10]} Qxd4+ {[%emt 0:06:25]} 22. Rxd4 {[%emt 0:01:32]} Bxd4+ {[%emt 0:00:02]} 23. Kh1 {[%emt 0:00:09]} Rxc4 {[%emt 0:00:11]} 24. Qxd3 {[%emt 0:01:09]} Rfc8 {[%emt 0:00:06]} 25. Rf1 {[%emt 0:02:05]} Bxc3 {[%emt 0:00:03]} 26. Qxd6 {[%emt 0:01:07]} Bg7 {[%emt 0:03:06]} 27. Qd2 {[%emt 0:00:49]} R8c5 {[%emt 0:02:54]} 28. Qd8+ {[%emt 0:02:54]} Bf8 {[%emt 0:00:14]} 29. Qf6 {[%emt 0:00:17]} Rc7 {[%emt 0:01:23]} 30. h4 {[%emt 0:00:53]} Rg4 {[%emt 0:03:32]} 31. Rf3 {[%emt 0:04:55]} Rd7 {[%emt 0:04:03]} 32. Rc3 {[%emt 0:02:20]} Rg6 {[%emt 0:06:31]} 33. Qf3 {[%emt 0:00:33]} Kg7 {[%emt 0:38:15]} 34. a4 {[%emt 0:04:54]} Rf6 {[%emt 0:00:00]} 35. Qg4+ {[%emt 0:00:06]} Rg6 {[%emt 0:00:00]} 36. Qe2 {[%emt 0:02:51]} Be7 {[%emt 0:00:00]} 37. Rc4 {[%emt 0:01:26]} Rd5 {[%emt 0:00:00]} 38. Qe1 {[%emt 0:04:22]} h5 {[%emt 0:00:00]} 39. Qc3+ {[%emt 0:01:23]} Bf6 {[%emt 0:00:00]} 40. Qf3 {[%emt 0:00:14]} Rf5 {[%emt 0:00:00]} 41. Qe2 {[%emt 0:00:38]} Re5 {[%emt 0:00:00]} 42. Qd1 {[%emt 0:02:07]} Rd5 {[%emt 0:00:00]} 43. Qe1 {[%emt 0:00:12]} Re5 {[%emt 0:00:00]} 44. Qf1 {[%emt 0:00:02]} Rf5 {[%emt 0:00:00]} 45. Qg1 {[%emt 0:00:05]} b6 {[%emt 0:00:00]} 46. g4 {[%emt 0:02:10]} hxg4 {[%emt 0:00:00]} 47. Rxg4 {[%emt 0:00:16]} Rh5 {[%emt 0:00:00]} 48. Rxg6+ {[%emt 0:00:25]} fxg6 {[%emt 0:00:00]} 49. Qd1 {[%emt 0:00:15]} Rxh4+ {[%emt 0:00:00]} 50. Kg2 {[%emt 0:00:01]} Rd4 {[%emt 0:00:00]} 51. Qc2 {[%emt 0:00:08]} Rd7 {[%emt 0:00:00]} 52. Qc6 {[%emt 0:00:03]} Re7 {[%emt 0:00:00]} 53. Kf3 {[%emt 0:00:02]} Kf7 {[%emt 0:00:00]} 54. Ke4 {[%emt 0:00:12]} g5 {[%emt 0:00:00]} 55. Qc2 {[%emt 0:00:37]} Rd7 {[%emt 0:00:00]} 56. Kf3 {[%emt 0:00:06]} Kg7 {[%emt 0:00:00]} 57. Qc6 {[%emt 0:00:12]} Re7 {[%emt 0:00:00]} 58. Qe4 {[%emt 0:00:01]} e5 {[%emt 0:00:00]} 59. Kg4 {[%emt 0:00:04]} Rd7 {[%emt 0:00:00]} 60. Kh5 {[%emt 0:00:22]} Kf7 {[%emt 0:00:00]} 61. Qc4+ {[%emt 0:00:15]} Kg7 {[%emt 0:00:00]} 62. Qc2 {[%emt 0:00:21]} Kf7 {[%emt 0:00:00]} 63. Qc6 {[%emt 0:00:29]} Re7 {[%emt 0:00:00]} 64. Qd5+ {[%emt 0:00:13]} Kg7 {[%emt 0:00:00]} 65. Qe4 {[%emt 0:00:02]} Kf7 {[%emt 0:00:00]} 66. Kg4 {[%emt 0:00:01]} Kg7 {[%emt 0:00:00]} 67. Kf5 {[%emt 0:00:02]} Rc7 {[%emt 0:00:00]} 68. Qh1 {[%emt 0:00:08]} e4 {[%emt 0:00:00]} 69. Qxe4 {[%emt 0:00:27]} Rc5+ {[%emt 0:00:00]} 70. Kg4 {[%emt 0:00:01]} Re5 {[%emt 0:00:00]} 71. Qb7+ {[%emt 0:00:04]} Re7 {[%emt 0:00:00]} 72. Qc6 {[%emt 0:00:02]} Kf7 {[%emt 0:00:00]} 73. Qc4+ {[%emt 0:00:09]} Kg7 {[%emt 0:00:00]} 74. Kh5 {[%emt 0:00:03]} Re8 {[%emt 0:00:27]} 75. Qc7+ {[%emt 0:00:03]} Re7 {[%emt 0:00:01]} 76. Qc2 {[%emt 0:00:02]} Kf7 {[%emt 0:00:28]} 77. Qc4+ {[%emt 0:00:30]} Kg7 {[%emt 0:00:02]} 78. Qd5 {[%emt 0:00:09]} Re5 {[%emt 0:00:22]} 79. Qd7+ {[%emt 0:00:02]} Re7 {[%emt 0:00:01]} 80. Qf5 {[%emt 0:00:02]} Kf7 {[%emt 0:06:29]} 81. Qh7+ {[%emt 0:00:27]} Ke6 {[%emt 0:00:10]} 82. Qg8+ Kd6 {[%emt 0:00:00]} 83. Qf8 {[%emt 0:00:25]} Ke6 {[%emt 0:00:20]} 84. Qc8+ {[%emt 0:00:11]} Kf7 {[%emt 0:00:00]} 85. Kh6 {[%emt 0:00:19]} Re6 {[%emt 0:00:00]} 86. Qc4 {[%emt 0:00:35]} Be7+ {[%emt 0:00:00]} 87. Kh5 {[%emt 0:00:10]} Bf6 {[%emt 0:00:00]} 88. Kg4 {[%emt 0:00:05]} Ke7 {[%emt 0:00:00]} 89. Qc7+ {[%emt 0:00:02]} Ke8 {[%emt 0:00:00]} 90. Qxa7 {[%emt 0:00:01]} Bd8 {[%emt 0:00:00]} 91. Qb7 {[%emt 0:00:11]} Rf6 {[%emt 0:00:00]} 92. Kh5 {[%emt 0:00:30]} Re6 {[%emt 0:00:00]} 93. Qd5 {[%emt 0:00:10]} Re7 {[%emt 0:00:00]} 94. Kg6 {[%emt 0:00:12]} Ra7 {[%emt 0:00:00]} 95. Qg8+ {[%emt 0:00:09]} Kd7 {[%emt 0:00:00]} 96. Qf7+ {[%emt 0:00:09]} Be7 {[%emt 0:00:00]} 97. Qd5+ {[%emt 0:00:02]} Bd6 {[%emt 0:00:00]} 98. Qc6+ {[%emt 0:00:05]} Ke6 {[%emt 0:00:00]} 99. Qc8+ {[%emt 0:00:46]} Kd5 {[%emt 0:00:03]} 100. Qc6+ {[%emt 0:00:05]} Ke6 {[%emt 0:02:47]} 101. Qc4+ {[%emt 0:00:05]} Ke5 {[%emt 0:00:00]} 102. Qe2+ {[%emt 0:00:26]} Kd5 {[%emt 0:00:00]} 103. Qf3+ {[%emt 0:00:09]} Ke5 {[%emt 0:00:00]} 104. Qe3+ {[%emt 0:00:07]} Kd5 {[%emt 0:00:00]} 105. Qxb6 {[%emt 0:00:04]} Rxa4 {[%emt 0:00:00]} 106. Qc6+ {[%emt 0:00:02]} Ke5 {[%emt 0:00:00]} 107. Qc3+ {[%emt 0:00:18]} Kd5 {[%emt 0:00:00]} 1-0

[Event "Charlotte Open 2024"]
[Site "Charlotte"]
[Date "2024.01.13"]
[Round "1.15"]
[White "Liu, Ethan"]
[Black "King, Alexander"]
[Result "1-0"]
[ECO "C67"]
[WhiteElo "1967"]
[BlackElo "2302"]
[Annotator "TA"]
[PlyCount "61"]
[EventDate "2024.01.05"]
[EventType "swiss"]
[EventCountry "USA"]
[SourceTitle "playchess.com"]
[Source "ChessBase"]
[SourceQuality "1"]
[TimeControl "6600+10"]

{[%evp 16,61,32,0,0,-21,-8,-27,-8,-21,-14,-24,0,-10,33,26,35,0,39,7,11,9,26,12,32,27,53,29,80,85,98,87,79,57,541,530,745,722,770,778,1128,693,5623,5352,5343,5347,29965,9577]} 1. e4 {[%emt 0:00:03]} e5 {[%emt 0:00:16]} 2. Nf3 {[%emt 0:00:02]} Nc6 {[%emt 0:00:07]} 3. Bb5 {[%emt 1:50:35]} Nf6 {[%emt 0:00:10]} 4. O-O {[%emt 0:00:00]} Nxe4 {[%emt 0:00:10]} 5. d4 {[%emt 0:00:00]} Nd6 {[%emt 0:00:10]} 6. Bxc6 {[%emt 0:00:00]} dxc6 {[%emt 0:00:07]} 7. dxe5 {[%emt 0:00:00]} Nf5 {[%emt 0:00:06]} 8. Qxd8+ {[%emt 0:00:00]} Kxd8 {[%emt 0:00:04]} 9. h3 {[%emt 0:00:00]} Bd7 {[%emt 0:04:32]} 10. Rd1 {[%emt 0:00:00]} Kc8 {[%emt 0:02:35]} 11. Nc3 {[%emt 0:00:00]} h6 {[%emt 0:07:47] Wards off Ng5. Black has an edge.} 12. b3 {[%emt 0:00:00]} c5 {[%emt 0:16:33]} 13. Nd5 {[%emt 0:00:00]} Ne7 {[%emt 0:15:13]} 14. c4 {[%emt 0:00:00]} Nxd5 {[%emt 0:09:41]} 15. cxd5 {[%emt 0:00:00]} a5 {[%emt 0:09:15]} 16. Re1 {[%emt 0:00:00] [#] Threatens to win with e6.} Ra6 {[%emt 0:02:09]} 17. Bb2 {[%emt 0:00:00]} Rg8 {[%emt 0:00:50]} 18. Nd2 {[%emt 0:00:00]} Be7 {[%emt 0:07:39]} 19. Ne4 {[%emt 0:00:00]} Rg6 {[%emt 0:07:52]} 20. Kh2 {[%emt 0:00:00]} b6 {[%emt 0:00:19]} 21. f4 {[%emt 0:00:00]} f5 {[%emt 0:04:17]} (21... h5 $11 {keeps the balance.}) 22. Nd2 {[%emt 0:00:00]} (22. Ng3 {simplifies} Bh4 23. Re3 Bxg3+ 24. Rxg3 Rxg3 25. Kxg3 Bb5 26. Rd1) 22... c6 {[%emt 0:06:02]} 23. e6 {[%emt 0:00:00]} Be8 {[%emt 0:00:04]} 24. Nc4 $36 {[%emt 0:00:00][%mdl 2048] [#] aiming for d6. White has good play. White is more active.} b5 $2 {[%emt 0:01:38][%mdl 8192] This costs Black the game.} (24... cxd5 $14 25. Nxb6+ Kb7 26. Nxd5 Bc6) 25. d6 $18 {[%emt 0:00:00][%cal Bd5d6,Bd6e7][%mdl 32]} ({Less strong is} 25. Nxa5 cxd5 26. Rad1 Bd8 $11 (26... d4 27. b4 $16)) 25... bxc4 {[%emt 0:11:57]} 26. dxe7 {[%emt 0:00:00]} c3 {[%emt 0:01:11]} 27. Bxc3 {[%emt 0:00:00]} c4 {[%emt 0:00:02] Black is weak on the dark squares} 28. Rad1 {[%emt 0:00:00] White threatens Rd8+ and mate.} c5 {[%emt 0:00:56]} 29. Rd8+ {[%emt 0:00:00]} Kb7 {[%emt 0:00:03]} 30. bxc4 {[%emt 0:00:00] Rb1+ would kill now.} Bc6 {[%emt 0:00:34]} 31. g4 {[%emt 0:00:00] Weighted Error Value: White=0.48/Black=0.89.  Loses game:     	---       	Black=1      Mistake:       	---       	Black=1      Inaccurate:     	White=2     	Black=4      OK:         	White=6     	Black=5      Best:        	White=1     	---} ({Inferior is} 31. Rxg8 Rxg2+ 32. Kh1 Rg4+ $11) 1-0

[Event "Charlotte Open 2024"]
[Site "Charlotte"]
[Date "2024.01.13"]
[Round "1.16"]
[White "Abrahamyan, Tatev"]
[Black "Wu, Andrew"]
[Result "1-0"]
[ECO "B78"]
[WhiteElo "2311"]
[BlackElo "1969"]
[Annotator "RC"]
[PlyCount "54"]
[EventDate "2024.01.05"]
[EventType "swiss"]
[EventCountry "USA"]
[SourceTitle "playchess.com"]
[Source "ChessBase"]
[SourceQuality "1"]
[TimeControl "6600+10"]

1. e4 {[%emt 0:00:48]} c5 {[%emt 0:03:25]} 2. Nf3 {[%emt 0:00:23]} d6 {[%emt 0:00:12]} 3. d4 {[%emt 0:00:08]} cxd4 {[%emt 0:00:11]} 4. Nxd4 {[%emt 0:00:09]} Nf6 {[%emt 0:00:11]} 5. Nc3 {[%emt 0:00:06]} g6 {[%emt 0:00:31]} 6. Be3 {[%emt 0:00:27]} Bg7 {[%emt 0:00:14]} 7. f3 {[%emt 0:00:12]} Nc6 {[%emt 0:00:07]} 8. Qd2 {[%emt 0:00:15]} O-O {[%emt 0:00:10]} 9. Bc4 {[%emt 0:03:45]} Bd7 {[%emt 0:00:20]} 10. O-O-O {[%emt 0:00:37]} Rb8 {[%emt 0:01:19]} 11. g4 {[%emt 0:06:09]} b5 {[%emt 0:01:51]} 12. Bb3 {[%emt 0:01:16]} Nxd4 {[%emt 0:02:33]} 13. Bxd4 {[%emt 0:00:09]} a5 {[%emt 0:04:51]} 14. g5 {[%emt 0:09:53]} Nh5 {[%emt 0:03:17]} 15. Bxg7 {[%emt 0:03:40]} Nxg7 {[%emt 0:00:22]} 16. a3 {[%emt 0:01:24]} b4 {[%emt 0:02:14]} 17. axb4 {[%emt 0:00:50]} axb4 {[%emt 0:00:33]} 18. Nd5 {[%emt 0:00:56]} Ne6 {[%emt 0:06:21]} 19. h4 {[%emt 0:03:45]} Nc5 {[%emt 0:01:24]} 20. h5 {[%emt 0:06:43]} Nxb3+ {[%emt 0:04:56]} 21. cxb3 {[%emt 0:00:14]} Be6 {[%emt 0:07:01]} 22. Qh2 {[%emt 0:03:51]} Qa5 {[%emt 0:06:04]} 23. hxg6 {[%emt 0:04:41]} Qa1+ {[%emt 0:03:09]} 24. Kc2 {[%emt 0:01:01]} Rfc8+ {[%emt 0:00:23]} 25. Kd3 {[%emt 0:00:25]} Qa6+ {[%emt 0:03:05]} 26. Kd2 {[%emt 0:00:43]} Kf8 {[%emt 0:00:56]} 27. g7+ {[%emt 0:03:04]} Ke8 {[%emt 0:00:43]} 1-0